bitfinex/quotes_BTCUSD_20250406
["timestamp","ask_amount","ask_price","bid_price","bid_amount"]
[1743973361599,0.00030315,79087.0,79086.0,0.02154085]
[1743973361864,0.00030315,79087.0,79086.0,0.007]
[1743973362462,0.33479858,79106.0,79086.0,0.007]
[1743973362698,0.16935672,79105.0,79086.0,0.003]
[1743973362936,0.16999488,79105.0,79086.0,0.004]
[1743973363402,0.16999488,79105.0,79079.0,0.265554]
[1743973363627,0.16999488,79105.0,79086.0,0.004]
[1743973363855,0.12399488,79105.0,79087.0,0.252883]
[1743973364076,0.00109191,79105.0,79092.0,0.012643]
[1743973364304,0.00109191,79105.0,79089.0,0.012643]
[1743973364534,0.00109191,79105.0,79090.0,0.028217]
[1743973365202,0.00109191,79105.0,79090.0,0.04086]
[1743973365533,0.00109191,79105.0,79090.0,0.028217]
[1743973365728,0.00109191,79105.0,79090.0,0.032217]
[1743973365941,0.12290297,79104.0,79090.0,0.004]
[1743973366155,0.00063816,79103.0,79090.0,0.004]
[1743973366365,0.34,79101.0,79090.0,0.004]
[1743973366566,0.00063816,79100.0,79090.0,0.004]
[1743973366988,0.34,79098.0,79090.0,0.007]
[1743973367197,0.49,79091.0,79090.0,0.007]
[1743973367439,0.82858297,79091.0,79090.0,0.007]
[1743973367634,0.82858297,79091.0,79078.0,1.09364]
[1743973367635,0.49,79079.0,79078.0,1.09364]
[1743973367876,0.61290297,79079.0,79078.0,1.09364]
[1743973368130,0.61290297,79079.0,79050.0,0.01265]
[1743973368131,0.34,79078.0,79052.0,1.0934]
[1743973368355,0.34,79076.0,79052.0,1.0934]
[1743973368547,0.34,79074.0,79052.0,1.0934]
[1743973368747,0.34,79070.0,79052.0,1.0934]
[1743973368974,0.34,79068.0,79052.0,1.0934]
[1743973369182,0.34,79066.0,79052.0,1.09353615]
[1743973369454,0.34,79059.0,79052.0,1.09653615]
[1743973369618,0.00063816,79058.0,79052.0,1.10053615]
[1743973369809,0.00063816,79058.0,79053.0,0.110087]
[1743973370008,0.00063816,79058.0,79052.0,1.09753615]
[1743973370209,0.34,79064.0,79052.0,1.10053615]
[1743973370505,0.34,79064.0,79053.0,0.265643]
[1743973371018,0.00063816,79063.0,79052.0,1.09653615]
[1743973371227,0.00063816,79063.0,79052.0,1.10053615]
[1743973371471,0.34063816,79062.0,79052.0,1.09653615]
[1743973371646,0.34,79062.0,79060.0,0.25297]
[1743973371853,0.34,79062.0,79061.0,0.265617]
[1743973372055,0.34,79062.0,79058.0,0.012648]
[1743973372284,0.34,79062.0,79055.0,0.01454085]
[1743973372479,0.01240361,79073.0,79053.0,0.003]
[1743973372660,0.34,79071.0,79053.0,0.003]
[1743973372866,0.34,79069.0,79052.0,1.09353615]
[1743973373105,0.34,79067.0,79052.0,1.11018515]
[1743973373281,0.34,79067.0,79058.0,0.015648]
[1743973373482,0.34,79067.0,79058.0,0.003]
[1743973373740,0.00063816,79066.0,79052.0,1.09753615]
[1743973374012,0.12290297,79065.0,79052.0,1.09753615]
[1743973374222,0.00063816,79064.0,79052.0,1.10053615]
[1743973374434,0.34,79062.0,79052.0,1.09653615]
[1743973374653,0.00063816,79061.0,79053.0,0.004]
[1743973375108,0.34,79068.0,79052.0,1.10918515]
[1743973375329,0.352391,79073.0,79061.0,0.012648]
[1743973375551,0.2156,79074.0,79069.0,0.012647]
[1743973375761,0.34,79082.0,79067.0,0.012647]
[1743973375965,0.01267406,79078.0,79065.0,0.2656]
[1743973376094,0.00063816,79077.0,79065.0,0.2656]
[1743973376300,0.34,79082.0,79053.0,0.13744382]
[1743973376301,0.15,79075.0,79053.0,0.12290297]
[1743973376501,0.34063816,79074.0,79061.0,0.014648]
[1743973376705,0.34,79074.0,79065.0,0.012647]
[1743973376931,0.34,79074.0,79070.0,0.252939]
[1743973377103,0.21556,79084.0,79070.0,0.265586]
[1743973377320,0.34063816,79083.0,79067.0,0.01454085]
[1743973377589,0.35253279,79083.0,79065.0,0.001]
[1743973377905,0.12290297,79082.0,79065.0,0.001]
[1743973378085,0.00063816,79081.0,79065.0,0.001]
[1743973378233,0.34,79075.0,79070.0,0.004]
[1743973378444,0.34,79073.0,79066.0,0.252953]
[1743973378651,0.34,79073.0,79059.0,0.012648]
[1743973378863,0.34,79073.0,79065.0,0.004]
[1743973379247,0.00063816,79072.0,79070.0,0.002]
[1743973379425,0.00063816,79072.0,79070.0,0.005]
[1743973379694,0.3397653,79079.0,79070.0,0.003]
[1743973379924,0.12290297,79078.0,79070.0,0.003]
[1743973380758,0.12290297,79078.0,79070.0,0.002]
[1743973381218,0.15,79071.0,79070.0,0.002]
[1743973381418,0.27290297,79071.0,79070.0,0.002]
[1743973381620,0.61290297,79071.0,79070.0,0.005]
[1743973381737,0.61290297,79071.0,79070.0,0.003]
[1743973382585,0.61290297,79071.0,79070.0,0.002]
[1743973382810,0.72730737,79071.0,79070.0,0.002]
[1743973383026,0.72730737,79071.0,79052.0,1.09353615]
[1743973383027,0.34,79070.0,79052.0,1.09353615]
[1743973383238,0.64024637,79071.0,79052.0,0.00013615]
[1743973383239,0.34,79055.0,79052.0,0.00013615]
[1743973383488,0.34,79053.0,79052.0,0.00013615]
[1743973383684,0.46290297,79053.0,79052.0,0.00013615]
[1743973383879,0.34,79053.0,79052.0,0.00013615]
[1743973384079,0.4138004,79069.0,79052.0,0.00013615]
[1743973384080,0.21544,79068.0,79055.0,0.252988]
[1743973384276,0.4138004,79069.0,79058.0,0.012648]
[1743973384476,0.01253279,79083.0,79064.0,0.012647]
[1743973384724,0.21544,79084.0,79070.0,0.003]
[1743973384970,0.21544,79084.0,79039.0,0.000334]
[1743973384971,0.12290297,79083.0,79039.0,0.000334]
[1743973385162,0.15,79075.0,79049.0,0.01454085]
[1743973385372,0.34,79073.0,79055.0,0.001]
[1743973385676,0.34,79071.0,79047.0,0.0003338]
[1743973385878,0.34,79069.0,79052.0,0.00113615]
[1743973386093,0.34,79067.0,79052.0,0.00113615]
[1743973386309,0.34,79067.0,79052.0,0.00013615]
[1743973386511,0.34,79065.0,79052.0,0.00313615]
[1743973386717,0.34,79062.0,79055.0,0.003]
[1743973387063,0.34,79062.0,79052.0,0.00313615]
[1743973387511,0.34,79062.0,79061.0,0.012648]
[1743973387750,0.2154,79068.0,79058.0,0.28016685]
[1743973387751,0.34,79067.0,79058.0,0.28016685]
[1743973387967,0.34,79067.0,79057.0,0.01454085]
[1743973388434,0.34,79067.0,79055.0,0.01454085]
[1743973388695,0.34,79067.0,79061.0,0.002]
[1743973388958,0.34,79067.0,79052.0,0.00013615]
[1743973388959,0.34,79065.0,79052.0,0.00313615]
[1743973389193,0.39293842,79067.0,79052.0,0.00313615]
[1743973389194,0.34,79059.0,79052.0,0.00313615]
[1743973389476,0.46290297,79058.0,79057.0,0.003]
[1743973389741,0.46290297,79058.0,79055.0,0.003]
[1743973389742,0.34,79057.0,79055.0,0.003]
[1743973390003,0.46290297,79056.0,79055.0,0.003]
[1743973390244,0.46290297,79056.0,79052.0,0.00013615]
[1743973390245,0.605643,79053.0,79052.0,0.00013615]
[1743973390487,0.72854597,79053.0,79052.0,0.00013615]
[1743973390738,0.72854597,79053.0,79052.0,0.00113615]
[1743973390739,0.85144365,79053.0,79052.0,0.00113615]
[1743973390978,0.75566,79048.0,79038.0,0.0003338]
[1743973391210,0.49,79040.0,79038.0,0.0003338]
[1743973391456,0.82826297,79040.0,79038.0,0.0003338]
[1743973391699,0.67826297,79040.0,79038.0,0.0003338]
[1743973392857,0.55536,79040.0,79038.0,0.0003338]
[1743973393269,0.67826297,79040.0,79038.0,0.0003338]
[1743973393472,0.76108927,79040.0,79038.0,0.0003338]
[1743973394280,0.67826297,79040.0,79038.0,0.0003338]
[1743973394953,0.67926297,79040.0,79038.0,0.0003338]
[1743973395187,0.331,79040.0,79038.0,0.0003338]
[1743973395388,0.66922297,79040.0,79038.0,0.0003338]
[1743973395537,0.66822297,79040.0,79038.0,0.0003338]
[1743973395738,0.66922297,79040.0,79038.0,0.0003338]
[1743973395939,0.75114527,79040.0,79038.0,0.0003338]
[1743973396142,0.66922297,79040.0,79038.0,0.0003338]
[1743973396345,0.54532,79040.0,79038.0,0.0003338]
[1743973396555,0.54632,79040.0,79038.0,0.0003338]
[1743973398870,0.54532,79040.0,79038.0,0.0003338]
[1743973399046,0.54532,79040.0,79039.0,0.001334]
[1743973399281,0.66822297,79040.0,79039.0,0.001334]
[1743973399483,0.66822297,79040.0,79039.0,0.000334]
[1743973399694,0.98808127,79040.0,79039.0,0.000334]
[1743973399909,1.00073227,79040.0,79039.0,0.001334]
[1743973400135,0.15,79022.0,79021.0,0.0003338]
[1743973400337,0.61290297,79022.0,79021.0,0.0003338]
[1743973400547,0.34,79022.0,79021.0,0.0003338]
[1743973400751,0.34,79022.0,79021.0,0.0456338]
[1743973401169,0.34,79022.0,79021.0,0.0003338]
[1743973401370,0.46290297,79022.0,79021.0,0.0003338]
[1743973401483,0.46301189,79022.0,79021.0,0.0003338]
[1743973401890,0.46301189,79022.0,79021.0,0.0033338]
[1743973402087,0.52656411,79022.0,79021.0,0.0033338]
[1743973402351,0.52656411,79022.0,79021.0,0.0003338]
[1743973402551,0.52656411,79022.0,79021.0,0.0013338]
[1743973402777,0.52656411,79022.0,79021.0,0.0003338]
[1743973403010,0.46301189,79022.0,79021.0,0.0003338]
[1743973404232,0.55534892,79022.0,79021.0,0.0003338]
[1743973404384,0.00010892,79022.0,79021.0,0.2660848]
[1743973404789,0.00210892,79022.0,79021.0,0.2660848]
[1743973405198,0.00210892,79022.0,79021.0,0.28062565]
[1743973405399,0.00010892,79022.0,79021.0,0.36679091]
[1743973405751,0.00010892,79022.0,79021.0,0.49069388]
[1743973405953,0.21524,79044.0,79031.0,0.012653]
[1743973406157,0.34,79043.0,79030.0,0.02719385]
[1743973406516,0.34,79043.0,79026.0,0.25308]
[1743973406723,0.34,79043.0,79026.0,0.29617501]
[1743973406925,0.34,79041.0,79022.0,0.265747]
[1743973407135,0.12290297,79040.0,79021.0,0.0063338]
[1743973407288,0.34,79036.0,79021.0,0.0033338]
[1743973407491,0.34,79034.0,79021.0,0.0063338]
[1743973407779,0.34,79032.0,79021.0,0.0033338]
[1743973407907,0.34,79030.0,79021.0,0.0003338]
[1743973408119,0.49,79028.0,79022.0,0.003]
[1743973408472,0.34,79026.0,79021.0,0.0003338]
[1743973408805,0.00957332,79034.0,79021.0,0.0063338]
[1743973409007,0.339,79032.0,79021.0,0.0033338]
[1743973409239,0.12290297,79031.0,79021.0,0.0003338]
[1743973409595,0.21516,79030.0,79021.0,0.0003338]
[1743973409776,0.001,79026.0,79021.0,0.0003338]
[1743973409977,0.12290297,79025.0,79021.0,0.0003338]
[1743973410398,0.001,79026.0,79022.0,0.003]
[1743973410615,0.001,79026.0,79021.0,0.0003338]
[1743973410958,0.34,79024.0,79021.0,0.0013338]
[1743973411301,0.34,79022.0,79021.0,0.0003338]
[1743973411569,0.46290297,79022.0,79021.0,0.0003338]
[1743973412158,0.46290297,79022.0,79021.0,0.0023338]
[1743973412369,0.46290297,79022.0,79021.0,0.0033338]
[1743973412568,0.55836327,79022.0,79021.0,0.0013338]
[1743973412908,0.54570927,79022.0,79021.0,0.0013338]
[1743973413518,0.54570927,79022.0,79021.0,0.0003338]
[1743973414157,0.54570927,79022.0,79021.0,0.0013338]
[1743973414358,0.54570927,79022.0,79003.0,0.000334]
[1743973414359,0.012656,79008.0,79003.0,0.000334]
[1743973414552,0.73369697,79008.0,79007.0,0.00078836]
[1743973416085,0.73569697,79008.0,79007.0,0.00078836]
[1743973416492,0.420822,79000.0,78999.0,0.0003338]
[1743973416670,0.49,78992.0,78991.0,0.0003338]
[1743973416877,0.61290297,78992.0,78991.0,0.0003338]
[1743973417095,0.62556197,78992.0,78991.0,0.0003338]
[1743973417337,0.61290297,78992.0,78991.0,0.0003338]
[1743973417833,0.83770225,78992.0,78991.0,0.0003338]
[1743973418404,0.89053601,78992.0,78991.0,0.0003338]
[1743973418580,0.84070225,78992.0,78991.0,0.0003338]
[1743973418982,0.46590297,78992.0,78991.0,0.0003338]
[1743973419186,0.68098297,78992.0,78991.0,0.0003338]
[1743973419799,0.68298297,78992.0,78991.0,0.0003338]
[1743973420428,0.67998297,78992.0,78991.0,0.0003338]
[1743973421054,0.55808,78992.0,78991.0,0.0003338]
[1743973421257,0.55608,78992.0,78991.0,0.0003338]
[1743973421592,0.55908,78992.0,78991.0,0.0003338]
[1743973422000,0.614988,78992.0,78991.0,0.0003338]
[1743973422800,0.55708,78992.0,78991.0,0.0003338]
[1743973423010,0.34,78992.0,78991.0,0.0003338]
[1743973423755,0.341,78992.0,78991.0,0.0003338]
[1743973423960,0.21504,78994.0,78991.0,0.3138858]
[1743973424172,0.00045385,79008.0,78997.0,0.012658]
[1743973424378,0.00045385,79008.0,79006.0,0.012657]
[1743973424379,0.21504,79007.0,79006.0,0.012657]
[1743973424586,0.21504,79007.0,79005.0,0.253146]
[1743973424587,0.21504,79007.0,79005.0,0.0463]
[1743973424784,0.34,79006.0,79005.0,0.0463]
[1743973425030,0.00045385,79008.0,79005.0,0.0463]
[1743973426072,0.00045385,79008.0,79005.0,0.0493]
[1743973426460,0.00045385,79008.0,79007.0,0.012657]
[1743973426684,0.00045385,79008.0,79007.0,0.02972897]
[1743973426873,0.00968357,79030.0,79015.0,0.012655]
[1743973427076,0.12290297,79029.0,79012.0,0.01518698]
[1743973427279,0.12290297,79029.0,79008.0,0.01454085]
[1743973427431,0.12290297,79029.0,79010.0,0.01454085]
[1743973427635,0.12290297,79029.0,79007.0,0.00010892]
[1743973427636,0.34,79028.0,79007.0,0.00010892]
[1743973427865,0.34,79026.0,79010.0,0.012656]
[1743973428092,0.34,79026.0,79013.0,0.012656]
[1743973428651,0.15,79042.0,79027.0,0.012653]
[1743973428853,0.12290297,79041.0,79022.0,0.012654]
[1743973429056,0.3672903,79040.0,79023.0,0.25309]
[1743973429268,0.34,79038.0,79021.0,0.253096]
[1743973429472,0.21492,79048.0,79029.0,0.012653]
[1743973429673,0.21492,79048.0,79038.0,0.012652]
[1743973429874,0.21492,79048.0,79033.0,0.0488]
[1743973430249,0.34,79047.0,79034.0,0.01091833]
[1743973430481,0.21492,79048.0,79034.0,0.01091833]
[1743973430691,0.002,79049.0,79035.0,0.00253033]
[1743973430887,0.002,79049.0,79048.0,0.01265]
[1743973431044,0.00213616,79049.0,79048.0,0.07492061]
[1743973431222,0.00213616,79049.0,79048.0,0.13681117]
[1743973431577,0.00213616,79049.0,79048.0,0.25971414]
[1743973431771,0.0001673,79064.0,79048.0,0.25971414]
[1743973431772,0.0001673,79064.0,79058.0,0.012648]
[1743973431946,0.0001673,79064.0,79062.0,0.252966]
[1743973432152,0.0001673,79064.0,79059.0,0.01454085]
[1743973432516,0.0001673,79064.0,79060.0,0.252972]
[1743973432927,0.0001673,79064.0,79063.0,0.02718885]
[1743973433096,0.0001673,79064.0,79063.0,0.0297181]
[1743973433302,0.0001673,79064.0,79063.0,0.19782107]
[1743973433679,0.0001673,79064.0,79063.0,0.19529182]
[1743973433856,0.002,79079.0,79071.0,0.012646]
[1743973434061,0.002,79079.0,79078.0,0.012645]
[1743973434268,0.00213613,79079.0,79078.0,0.40553137]
[1743973434465,0.00213613,79079.0,79078.0,0.40300282]
[1743973434661,0.21476,79107.0,79094.0,0.012643]
[1743973434863,0.21521368,79107.0,79079.0,0.0977]
[1743973435182,0.15,79095.0,79079.0,0.0478]
[1743973435416,0.12290297,79094.0,79079.0,0.0478]
[1743973435587,0.34,79093.0,79079.0,0.0478]
[1743973435792,0.34,79093.0,79082.0,0.265545]
[1743973435996,0.0001673,79081.0,79079.0,0.0478]
[1743973436364,0.0001673,79081.0,79079.0,0.0508]
[1743973436717,0.0001673,79081.0,79079.0,0.0478]
[1743973437321,0.0001673,79081.0,79078.0,1.09436]
[1743973437468,0.0001673,79081.0,79079.0,0.003]
[1743973437664,0.0001673,79081.0,79079.0,0.005]
[1743973437958,0.0001673,79081.0,79079.0,0.002]
[1743973438328,0.0001673,79081.0,79079.0,0.004]
[1743973438708,0.0001673,79081.0,79079.0,0.002]
[1743973438908,0.0001673,79081.0,79080.0,0.265553]
[1743973440471,0.0001673,79081.0,79080.0,0.267553]
[1743973440713,0.0001673,79081.0,79064.0,0.252959]
[1743973440970,0.0001673,79081.0,79079.0,0.002]
[1743973441184,0.0001673,79081.0,79079.0,0.014645]
[1743973441429,0.0001673,79081.0,79079.0,0.012645]
[1743973441629,0.0001673,79081.0,79071.0,0.012646]
[1743973441630,0.0001673,79081.0,79068.0,0.26748685]
[1743973441850,0.0001673,79081.0,79080.0,0.001]
[1743973442178,0.0001673,79081.0,79080.0,0.002]
[1743973442607,0.0001673,79081.0,79072.0,0.265579]
[1743973442804,0.0001673,79081.0,79079.0,0.012645]
[1743973443028,0.0001673,79081.0,79080.0,0.265553]
[1743973443247,0.0001673,79081.0,79080.0,0.3214463]
[1743973443449,0.0001673,79081.0,79080.0,0.001]
[1743973443757,0.0001673,79081.0,79080.0,0.265553]
[1743973444057,0.0001673,79081.0,79079.0,0.013645]
[1743973444215,0.0001673,79081.0,79079.0,0.001]
[1743973444413,0.0001673,79081.0,79079.0,0.002]
[1743973444813,0.0001673,79081.0,79079.0,0.001]
[1743973445416,0.0001673,79081.0,79069.0,0.00013613]
[1743973445625,0.0001673,79081.0,79080.0,0.001]
[1743973445830,0.0001673,79081.0,79080.0,0.003]
[1743973446040,0.46307027,79081.0,79080.0,0.002]
[1743973446221,0.7911917,79081.0,79080.0,0.002]
[1743973446621,0.7911917,79081.0,79069.0,0.00013613]
[1743973446622,0.502647,79070.0,79069.0,0.00013613]
[1743973446825,0.83994997,79070.0,79069.0,0.00013613]
[1743973447235,0.83994997,79070.0,79032.0,0.012653]
[1743973447236,0.34,79052.0,79032.0,0.012653]
[1743973447440,0.34,79050.0,79035.0,1.09389616]
[1743973447649,0.46290297,79050.0,79036.0,0.11085492]
[1743973447847,0.34,79048.0,79035.0,0.00013616]
[1743973448151,0.34,79046.0,79035.0,0.00013616]
[1743973448362,0.34,79044.0,79035.0,0.00313616]
[1743973448529,0.34,79042.0,79035.0,0.00313616]
[1743973448732,0.46290297,79042.0,79035.0,0.00313616]
[1743973449065,0.46290297,79042.0,79035.0,0.00013616]
[1743973449276,0.46290297,79042.0,79035.0,0.00413616]
[1743973449277,0.755701,79036.0,79035.0,0.00413616]
[1743973449500,0.61290297,79036.0,79035.0,0.00313616]
[1743973449908,0.87860397,79036.0,79035.0,0.00413616]
[1743973450186,0.87860397,79036.0,79035.0,0.00313616]
[1743973450187,0.61290297,79036.0,79035.0,0.00313616]
[1743973450402,0.46290297,79036.0,79035.0,0.00013616]
[1743973450578,0.46390297,79036.0,79035.0,0.00013616]
[1743973450901,0.46390297,79036.0,79035.0,0.00113616]
[1743973451121,0.341,79036.0,79035.0,0.00113616]
[1743973451333,0.55536,79036.0,79035.0,0.00013616]
[1743973451760,0.55736,79036.0,79035.0,0.00013616]
[1743973452187,0.55536,79036.0,79035.0,0.00013616]
[1743973452389,0.55436,79036.0,79035.0,0.00013616]
[1743973452596,0.002,79036.0,79035.0,0.00013616]
[1743973452797,0.002,79036.0,79035.0,0.07582078]
[1743973453154,0.002,79036.0,79035.0,0.08847278]
[1743973453354,0.002,79036.0,79035.0,0.07582078]
[1743973453554,0.002,79036.0,79035.0,0.04903616]
[1743973453767,0.21436,79039.0,79035.0,0.00113616]
[1743973453989,0.001,79036.0,79035.0,0.00013616]
[1743973454231,0.12390297,79036.0,79035.0,0.00013616]
[1743973454491,0.12290297,79036.0,79035.0,0.00013616]
[1743973454898,0.12290297,79036.0,79035.0,0.00113616]
[1743973455354,0.12290297,79036.0,79035.0,0.00213616]
[1743973455574,0.12390297,79036.0,79035.0,0.00013616]
[1743973456807,0.12290297,79036.0,79035.0,0.00013616]
[1743973457225,0.12390297,79036.0,79035.0,0.00013616]
[1743973458318,0.001,79036.0,79035.0,0.00013616]
[1743973458322,0.21528,79036.0,79035.0,0.00013616]
[1743973458691,0.21428,79036.0,79035.0,0.00013616]
[1743973458897,0.67718297,79036.0,79035.0,0.00013616]
[1743973459101,0.75990127,79036.0,79035.0,0.00013616]
[1743973459643,1.17560227,79036.0,79035.0,0.00013616]
[1743973460083,1.18060227,79036.0,79035.0,0.00013616]
[1743973460283,1.18060227,79036.0,79003.0,0.0003344]
[1743973460284,0.34,79013.0,79003.0,0.0003344]
[1743973460487,0.34,79011.0,79003.0,0.00044332]
[1743973460685,0.34,79009.0,79003.0,0.00044332]
[1743973461132,0.34,79007.0,79003.0,0.00044332]
[1743973461489,0.34,79007.0,79003.0,0.00344332]
[1743973461490,0.46290297,79007.0,79003.0,0.00344332]
[1743973461697,0.34,79005.0,79003.0,0.00344332]
[1743973462059,0.46290297,79004.0,79003.0,0.00344332]
[1743973462450,0.46290297,79004.0,79003.0,0.00044332]
[1743973462661,0.54561727,79004.0,79003.0,0.00044332]
[1743973462862,0.46290297,79004.0,79003.0,0.00044332]
[1743973463472,0.67710297,79004.0,79003.0,0.00044332]
[1743973463916,0.67710297,79004.0,79003.0,0.00144332]
[1743973464874,0.67710297,79004.0,79003.0,0.00044332]
[1743973465286,0.67910297,79004.0,79003.0,0.00044332]
[1743973465666,0.67710297,79004.0,79003.0,0.00044332]
[1743973466285,0.55416,79004.0,79003.0,0.00044332]
[1743973466485,0.67706297,79004.0,79003.0,0.00044332]
[1743973467308,0.55616,79004.0,79003.0,0.00044332]
[1743973467522,0.2162,79004.0,79003.0,0.06020032]
[1743973467722,0.21416,79009.0,79006.0,0.012657]
[1743973467923,0.037651,79044.0,79006.0,0.012657]
[1743973467924,0.21416,79022.0,79012.0,0.253125]
[1743973468109,0.34,79020.0,79012.0,0.265781]
[1743973468295,0.34,79020.0,79007.0,0.01454085]
[1743973468557,0.34,79020.0,79011.0,0.012656]
[1743973468886,0.15,79032.0,79014.0,0.012655]
[1743973469086,0.21416,79034.0,79024.0,0.012654]
[1743973469261,0.21416,79033.0,79023.0,0.012654]
[1743973469852,0.21416,79033.0,79024.0,0.012654]
[1743973470051,0.21416,79033.0,79024.0,0.265738]
[1743973470913,0.21416,79033.0,79025.0,0.01518465]
[1743973471128,0.21416,79033.0,79032.0,0.253062]
[1743973471335,0.21516,79033.0,79032.0,0.265715]
[1743973471688,0.21516,79033.0,79029.0,0.0478]
[1743973471867,0.21416,79033.0,79026.0,0.0471]
[1743973472278,0.21408,79034.0,79026.0,0.0471]
[1743973472500,0.21408,79033.0,79026.0,0.0471]
[1743973473084,0.21408,79033.0,79026.0,0.0501]
[1743973473278,0.21408,79033.0,79026.0,0.0471]
[1743973473581,0.21408,79033.0,79029.0,0.012653]
[1743973474387,0.21408,79033.0,79026.0,0.063754]
[1743973474782,0.21408,79033.0,79031.0,0.012653]
[1743973475186,0.00013601,79053.0,79035.0,0.012652]
[1743973475404,0.00013601,79053.0,79050.0,0.253004]
[1743973475405,0.34,79051.0,79050.0,0.253004]
[1743973475610,0.00013601,79053.0,79044.0,0.012651]
[1743973475822,0.00013601,79053.0,79045.0,0.00252998]
[1743973476014,0.00013601,79053.0,79035.0,0.265704]
[1743973476246,0.00013601,79053.0,79039.0,0.012651]
[1743973476416,0.00013601,79053.0,79042.0,0.012651]
[1743973476848,0.00013601,79053.0,79041.0,0.253031]
[1743973477052,0.00013601,79053.0,79044.0,0.003]
[1743973477405,0.00013601,79053.0,79045.0,0.012651]
[1743973478407,0.00013601,79053.0,79045.0,0.26567]
[1743973479254,0.00013601,79053.0,79034.0,0.012652]
[1743973479390,0.15,79048.0,79029.0,0.265721]
[1743973479595,0.12290297,79047.0,79032.0,0.012653]
[1743973480008,0.00013601,79053.0,79041.0,0.012651]
[1743973480190,0.00013601,79053.0,79043.0,0.012651]
[1743973480389,0.00013601,79053.0,79045.0,0.001]
[1743973480648,0.21388,79052.0,79045.0,0.001]
[1743973480855,0.21388,79052.0,79048.0,0.253009]
[1743973481035,0.00013601,79053.0,79052.0,0.252998]
[1743973481230,0.00013601,79053.0,79052.0,0.310847]
[1743973482396,0.00013601,79053.0,79043.0,0.0452]
[1743973482644,0.00013601,79053.0,79052.0,0.002]
[1743973483105,0.00013601,79053.0,79043.0,0.0452]
[1743973483106,0.00013601,79053.0,79044.0,0.299723]
[1743973483346,0.00013601,79053.0,79052.0,0.002]
[1743973483562,0.00013601,79053.0,79044.0,0.312374]
[1743973483867,0.00013601,79053.0,79052.0,0.002]
[1743973484421,0.00013601,79053.0,79044.0,0.0467]
[1743973484655,0.00013601,79053.0,79052.0,0.001]
[1743973484854,0.00013601,79053.0,79052.0,0.003]
[1743973485065,0.00013601,79053.0,79052.0,0.002]
[1743973485372,0.00013601,79053.0,79044.0,0.312374]
[1743973485606,0.00013601,79053.0,79052.0,0.001]
[1743973485789,0.67679898,79053.0,79052.0,0.001]
[1743973486201,0.67679898,79053.0,79025.0,0.012654]
[1743973486409,0.34,79046.0,79022.0,1.13932]
[1743973486634,0.46290297,79045.0,79044.0,0.003]
[1743973486833,0.46290297,79045.0,79033.0,0.265708]
[1743973487042,0.34,79044.0,79031.0,0.253064]
[1743973487522,0.21376,79043.0,79036.0,0.253048]
[1743973487692,0.21376,79043.0,79036.0,0.2657]
[1743973488070,0.21376,79043.0,79037.0,0.253046]
[1743973488270,0.21376,79043.0,79036.0,0.2657]
[1743973488696,0.21376,79043.0,79036.0,0.2687]
[1743973488907,0.21376,79043.0,79039.0,0.012651]
[1743973489172,0.21376,79043.0,79036.0,0.2687]
[1743973489605,0.21376,79043.0,79037.0,0.265695]
[1743973489809,0.21376,79043.0,79037.0,0.012652]
[1743973490209,0.34,79049.0,79040.0,0.265687]
[1743973490513,0.34,79049.0,79012.0,1.09412]
[1743973490715,0.025,79047.0,79044.0,0.012651]
[1743973490956,0.025,79045.0,79044.0,0.012651]
[1743973491143,0.005,79047.0,79045.0,0.25302]
[1743973491357,0.005,79047.0,79041.0,0.012651]
[1743973491358,0.025,79045.0,79038.0,0.25304]
[1743973492790,0.025,79045.0,79038.0,0.25504]
[1743973492988,0.025,79045.0,79039.0,0.01984827]
[1743973493550,0.005,79042.0,79038.0,0.002]
[1743973494024,0.03,79042.0,79038.0,0.002]
[1743973494307,0.03,79042.0,79039.0,0.001]
[1743973494488,0.005,79040.0,79039.0,0.001]
[1743973495088,0.005,79040.0,79030.0,0.299566]
[1743973495285,0.005,79040.0,79031.0,0.06051359]
[1743973495531,0.21368,79050.0,79048.0,0.265658]
[1743973495794,0.21368,79050.0,79040.0,0.265687]
[1743973495795,0.025,79048.0,79040.0,0.265687]
[1743973496029,0.025,79048.0,79040.0,0.012651]
[1743973496565,0.025,79048.0,79040.0,0.2936179]
[1743973497189,0.025,79048.0,79042.0,0.253029]
[1743973497418,0.005,79047.0,79031.0,0.06351359]
[1743973497622,0.005,79041.0,79032.0,0.012653]
[1743973497824,0.005,79041.0,79034.0,0.265704]
[1743973497974,0.005,79041.0,79035.0,0.012652]
[1743973498933,0.005,79041.0,79036.0,0.253046]
[1743973499129,0.005,79041.0,79035.0,0.265701]
[1743973499435,0.005,79041.0,79035.0,0.267701]
[1743973499830,0.005,79041.0,79036.0,0.253047]
[1743973500039,0.005,79047.0,79038.0,0.012652]
[1743973500243,0.025,79048.0,79039.0,0.253039]
[1743973500591,0.025,79048.0,79037.0,0.39048782]
[1743973500592,0.005,79041.0,79035.0,0.002]
[1743973500886,0.005,79041.0,79036.0,0.00253022]
[1743973501298,0.005,79041.0,79037.0,0.253046]
[1743973501492,0.005,79041.0,79037.0,0.265698]
[1743973501724,0.005,79041.0,79030.0,0.012653]
[1743973501871,0.005,79040.0,79035.0,0.002]
[1743973502039,0.021,79049.0,79012.0,1.347244]
[1743973502040,0.005,79028.0,79012.0,1.347244]
[1743973502240,0.005,79026.0,79013.0,0.265776]
[1743973502448,0.025,79031.0,79012.0,1.106776]
[1743973502449,0.005,79021.0,79012.0,1.09412]
[1743973502662,0.005,79021.0,79014.0,0.012655]
[1743973502866,0.005,79021.0,79012.0,1.106776]
[1743973502867,0.005,79021.0,79012.0,1.09412]
[1743973503070,0.005,79018.0,79012.0,1.09412]
[1743973503275,0.03,79013.0,79012.0,0.00010892]
[1743973503478,0.49290297,79013.0,79012.0,0.00010892]
[1743973503704,0.54219327,79013.0,79012.0,0.00010892]